fUSD/lending_fUSD_20241125
["ID","MTS","AMOUNT","RATE_DAILY","PERIOD"]
[343334570,1732578639465,-4286.88,0.00019757,2]
[343334571,1732578639474,-4286.88,0.00019757,2]
[343334572,1732578639483,-500.0,0.00019757,2]
[343334573,1732578639492,-500.0,0.00019757,2]
[343334574,1732578639501,-500.0,0.00019757,2]
[343334575,1732578639511,-621.40161767,0.00019757,2]
[343334576,1732578639520,-500.0,0.00019757,2]
[343334577,1732578639529,-165.2402509,0.00019757,2]
[343334578,1732578639538,-612.03,0.00019757,2]
[343334579,1732578639547,-500.0,0.00019757,2]
[343334580,1732578639556,-500.0,0.00019757,2]
[343334581,1732578639565,-500.0,0.00019757,2]
[343334582,1732578639574,-500.0,0.00019757,2]
[343334583,1732578639585,-500.0,0.00019757,2]
[343334584,1732578639594,-500.0,0.00019757,2]
[343334585,1732578639603,-2751.45,0.00019757,2]
[343334586,1732578639612,-2751.45,0.00019757,2]
[343334587,1732578639621,-2751.45,0.00019757,2]
[343334588,1732578639630,-2751.45,0.00019757,2]
[343334589,1732578639640,-500.0,0.00019757,2]
[343334590,1732578639649,-500.0,0.00019757,2]
[343334591,1732578639658,-500.0,0.00019757,2]
[343334592,1732578639668,-500.0,0.00019757,2]
[343334593,1732578639678,-1307.71,0.00019757,2]
[343334594,1732578639688,-1307.71,0.00019757,2]
[343334595,1732578639698,-1307.71,0.00019757,2]
[343334596,1732578639707,-1307.71,0.00019757,2]
[343334597,1732578639719,-5868.65,0.00019757,2]
[343334598,1732578639728,-5868.65,0.00019757,2]
[343334599,1732578639737,-5868.65,0.00019757,2]
[343334600,1732578639746,-2684.04,0.00019757,2]
[343334601,1732578639756,-2684.04,0.00019757,2]
[343334602,1732578639765,-5868.65,0.00019757,2]
[343334603,1732578639775,-2684.04,0.00019757,2]
[343334604,1732578639901,-2684.04,0.00019757,2]
[343334605,1732578639913,-500.0,0.00019757,2]
[343334606,1732578639922,-500.0,0.00019757,2]
[343334607,1732578639931,-500.0,0.00019757,2]
[343334608,1732578639940,-387.10193546,0.00019757,2]
[343334609,1732578639949,-500.0,0.00019757,2]
[343334610,1732578639961,-500.0,0.00019757,2]
[343334611,1732578639970,-500.0,0.00019757,2]
[343334612,1732578639979,-500.0,0.00019757,2]
[343334613,1732578639989,-520.19,0.00019757,2]
[343334614,1732578639998,-520.19,0.00019757,2]
[343334615,1732578640008,-520.19,0.00019757,2]
[343334616,1732578640017,-520.19,0.00019757,2]
[343334617,1732578640026,-500.0,0.00019757,2]
[343334618,1732578640035,-608.91609732,0.00019757,2]
[343334619,1732578640044,-10060.18,0.00019757,2]
[343334620,1732578640054,-10060.18,0.00019757,2]
[343334621,1732578640063,-10060.18,0.00019757,2]
[343334622,1732578640072,-10060.18,0.00019757,2]
[343334623,1732578640082,-1475.01,0.00019757,2]
[343334624,1732578640091,-1475.01,0.00019757,2]
[343334625,1732578640100,-1475.01,0.00019757,2]
[343334626,1732578640109,-1475.01,0.00019757,2]
[343334627,1732578640118,-1882.94,0.00019757,2]
[343334628,1732578640127,-1882.94,0.00019757,2]
[343334629,1732578640136,-1882.94,0.00019757,2]
[343334630,1732578640145,-1882.94,0.00019757,2]
[343334631,1732578640154,-500.0,0.00019757,2]
[343334632,1732578640163,-500.0,0.00019757,2]
[343334633,1732578640172,-500.0,0.00019757,2]
[343334634,1732578640182,-500.0,0.00019757,2]
[343334635,1732578640191,-500.0,0.00019757,2]
[343334636,1732578640202,-500.0,0.00019757,2]
[343334637,1732578640214,-500.0,0.00019757,2]
[343334638,1732578640223,-500.0,0.00019757,2]
[343334639,1732578640232,-1255.28,0.00019757,2]
[343334640,1732578640242,-1255.28,0.00019757,2]
[343334641,1732578640251,-1255.28,0.00019757,2]
[343334642,1732578640261,-1255.28,0.00019757,2]
[343334643,1732578640270,-500.0,0.00019757,2]
[343334644,1732578640282,-500.0,0.00019757,2]
[343334645,1732578640291,-500.0,0.00019757,2]
[343334646,1732578640299,-500.0,0.00019757,2]
[343334647,1732578640309,-1075.9,0.00019757,2]
[343334648,1732578640318,-1075.9,0.00019757,2]
[343334649,1732578640327,-1075.9,0.00019757,2]
[343334650,1732578640336,-1075.9,0.00019757,2]
[343334651,1732578640346,-500.0,0.00019757,2]
[343334652,1732578640355,-500.0,0.00019757,2]
[343334653,1732578640364,-161.66,0.00019757,2]
[343334654,1732578640373,-500.0,0.00019757,2]
[343334655,1732578640383,-496.38760213,0.00019757,2]
[343334656,1732578640392,-3339.05,0.00019757,2]
[343334657,1732578640401,-3339.05,0.00019757,2]
[343334658,1732578640410,-3339.05,0.00019757,2]
[343334659,1732578640419,-3339.05,0.00019757,2]
[343334660,1732578640429,-732.0,0.00019757,2]
[343334661,1732578640438,-1154.19,0.00019757,2]
[343334662,1732578640448,-732.0,0.00019757,2]
[343334663,1732578640457,-1154.19,0.00019757,2]
[343334664,1732578640469,-732.0,0.00019757,2]
[343334665,1732578640479,-1154.19,0.00019757,2]
[343334666,1732578640488,-732.0,0.00019757,2]
[343334667,1732578640498,-1154.19,0.00019757,2]
[343334668,1732578640507,-642.15,0.00019757,2]
[343334669,1732578640517,-642.15,0.00019757,2]
[343334670,1732578640527,-642.15,0.00019757,2]
[343334671,1732578640536,-642.15,0.00019757,2]
[343334672,1732578640546,-500.0,0.00019757,2]
[343334673,1732578640556,-500.0,0.00019757,2]
[343334674,1732578640565,-500.0,0.00019757,2]
[343334675,1732578640575,-500.0,0.00019757,2]
[343334676,1732578640585,-500.0,0.00019757,2]
[343334677,1732578640595,-500.0,0.00019757,2]
[343334678,1732578640604,-500.0,0.00019757,2]
[343334679,1732578640614,-500.0,0.00019757,2]
[343334680,1732578640623,-480.47100003,0.00019757,2]
[343334681,1732578640633,-500.0,0.00019757,2]
[343334682,1732578640643,-500.0,0.00019757,2]
[343334683,1732578640653,-500.0,0.00019757,2]
[343334684,1732578640663,-500.0,0.00019757,2]
[343334685,1732578640673,-500.0,0.00019757,2]
[343334686,1732578640683,-500.0,0.00019757,2]
[343334687,1732578640692,-168.03171517,0.00019757,2]
[343334688,1732578640702,-1533.0,0.00019757,2]
[343334689,1732578640714,-1533.0,0.00019757,2]
[343334690,1732578640723,-1533.0,0.00019757,2]
[343334691,1732578640733,-1533.0,0.00019757,2]
[343334693,1732578640742,-500.0,0.00019757,2]
[343334694,1732578640752,-500.0,0.00019757,2]
[343334695,1732578640762,-500.0,0.00019757,2]
[343334696,1732578640771,-555.32615702,0.00019757,2]
[343334697,1732578640780,-500.0,0.00019757,2]
[343334698,1732578640789,-500.0,0.00019757,2]
[343334699,1732578640798,-500.0,0.00019757,2]
[343334700,1732578640808,-500.0,0.00019757,2]
[343334701,1732578640817,-500.0,0.00019757,2]
[343334702,1732578640826,-500.0,0.00019757,2]
[343334703,1732578640835,-152.42725722,0.00019757,2]
[343334704,1732578640844,-500.0,0.00019757,2]
[343334705,1732578640854,-500.0,0.00019757,2]
[343334706,1732578640863,-500.0,0.00019757,2]
[343334707,1732578640871,-500.0,0.00019757,2]
[343334708,1732578640880,-1670.59,0.00019757,2]
[343334709,1732578640889,-719.7,0.00019757,2]
[343334710,1732578640898,-1670.59,0.00019757,2]
[343334711,1732578640907,-719.7,0.00019757,2]
[343334712,1732578640916,-1670.59,0.00019757,2]
[343334713,1732578640925,-719.7,0.00019757,2]
[343334714,1732578640934,-1670.59,0.00019757,2]
[343334715,1732578640943,-719.7,0.00019757,2]
[343334716,1732578640953,-1226.69,0.00019757,2]
[343334717,1732578640965,-1226.69,0.00019757,2]
[343334718,1732578640974,-1226.69,0.00019757,2]
[343334719,1732578640984,-1226.69,0.00019757,2]
[343334720,1732578640993,-500.0,0.00019757,2]
[343334721,1732578641002,-500.0,0.00019757,2]
[343334722,1732578641011,-405.33,0.00019757,2]
[343334723,1732578641021,-500.0,0.00019757,2]
[343334724,1732578641030,-500.0,0.00019757,2]
[343334725,1732578641039,-500.0,0.00019757,2]
[343334726,1732578641048,-500.0,0.00019757,2]
[343334727,1732578641061,-2654.98,0.00019757,2]
[343334728,1732578641070,-2654.98,0.00019757,2]
[343334729,1732578641079,-2654.98,0.00019757,2]
[343334730,1732578641089,-2654.98,0.00019757,2]
[343334731,1732578641098,-500.0,0.00019757,2]
[343334732,1732578641107,-500.0,0.00019757,2]
[343334733,1732578641117,-500.0,0.00019757,2]
[343334734,1732578641126,-325.52530264,0.00019757,2]
[343334735,1732578641135,-37966.9985,0.00019758,2]
[343334736,1732578641145,-245000.0,0.00019758,2]
[343334737,1732578641154,-718670.2254,0.00019758,2]
[343334738,1732578641163,-15618.338,0.00019758,2]
[343334739,1732578641172,-500.0,0.00019758,2]
[343334740,1732578641182,-2684.04,0.00019764,2]
[343334741,1732578641191,-3339.05,0.00019764,2]
[343334742,1732578641200,-1533.0,0.00019764,2]
[343334743,1732578641212,-500.0,0.00019773,2]
[343334744,1732578641221,-500.0,0.00019773,2]
[343334745,1732578641231,-500.0,0.00019773,2]
[343334746,1732578641240,-500.0,0.00019773,2]
[343334747,1732578641251,-18817.60526444,0.00019792,2]
[343334748,1732578641261,-1226.69,0.00019792,2]
[343334749,1732578641270,-500.0,0.00019792,2]
[343334750,1732578641279,-2654.98,0.00019792,2]
[343334751,1732578641290,-500.0,0.00019796,2]
[343334752,1732578641300,-903.22,0.00019796,2]
[343334753,1732578641309,-662.1,0.00019796,2]
[343334754,1732578641318,-1325.3,0.00019796,2]
[343334755,1732578641327,-500.0,0.00019796,2]
[343334756,1732578641337,-500.0,0.00019796,2]
[343334757,1732578641347,-500.0,0.00019796,2]
[343334758,1732578641356,-500.0,0.00019796,2]
[343334759,1732578641366,-500.0,0.00019796,2]
[343334760,1732578641375,-500.0,0.00019796,2]
[343334761,1732578641385,-5868.65,0.00019796,2]
[343334762,1732578641394,-1475.01,0.00019796,2]
[343334763,1732578641403,-732.0,0.00019796,2]
[343334764,1732578641412,-642.15,0.00019796,2]
[343334765,1732578641422,-500.0,0.00019796,2]
[343334766,1732578641432,-500.0,0.00019796,2]
[343334767,1732578641441,-584.77192575,0.00019796,2]
[343334768,1732578641451,-1670.59,0.00019796,2]
[343334769,1732578641463,-4286.88,0.00019797,2]
[343334770,1732578641475,-2751.45,0.00019797,2]
[343334771,1732578641485,-1307.71,0.00019797,2]
[343334772,1732578641495,-500.0,0.00019797,2]
[343334773,1732578641504,-520.19,0.00019797,2]
[343334774,1732578641514,-10060.18,0.00019797,2]
[343334775,1732578641524,-1882.94,0.00019797,2]
[343334776,1732578641534,-500.0,0.00019797,2]
[343334777,1732578641544,-500.0,0.00019797,2]
[343334778,1732578641554,-1255.28,0.00019797,2]
[343334779,1732578641564,-500.0,0.00019797,2]
[343334780,1732578641574,-1075.9,0.00019797,2]
[343334781,1732578641584,-1154.19,0.00019797,2]
[343334782,1732578641594,-500.0,0.00019797,2]
[343334783,1732578641603,-719.7,0.00019797,2]
[343334784,1732578641617,-100000.0,0.00019798,2]
[343334785,1732578641627,-18817.60526444,0.00019819,2]
[343334786,1732578641637,-500.0,0.0001984,2]
[343334787,1732578641646,-18817.60526444,0.00019846,2]
[343334788,1732578641656,-500.0,0.00019857,2]
[343334789,1732578641666,-903.22,0.00019857,2]
[343334790,1732578641677,-662.1,0.00019857,2]
[343334791,1732578641687,-1325.3,0.00019857,2]
[343334792,1732578641697,-500.0,0.00019857,2]
[343334793,1732578641706,-500.0,0.00019857,2]
[343334794,1732578641721,-500.0,0.00019857,2]
[343334795,1732578641730,-500.0,0.00019857,2]
[343334796,1732578641740,-500.0,0.00019857,2]
[343334797,1732578641750,-500.0,0.00019857,2]
[343334798,1732578641760,-5868.65,0.00019857,2]
[343334799,1732578641770,-2684.04,0.00019857,2]
[343334800,1732578641780,-1475.01,0.00019857,2]
[343334801,1732578641790,-3339.05,0.00019857,2]
[343334802,1732578641799,-732.0,0.00019857,2]
[343334803,1732578641809,-642.15,0.00019857,2]
[343334804,1732578641818,-500.0,0.00019857,2]
[343334805,1732578641828,-500.0,0.00019857,2]
[343334806,1732578641838,-1533.0,0.00019857,2]
[343334807,1732578641847,-1670.59,0.00019857,2]
[343334808,1732578641856,-1226.69,0.00019857,2]
[343334809,1732578641866,-2654.98,0.00019857,2]
[343334810,1732578641875,-500.0,0.00019857,2]
[343334811,1732578641884,-500.0,0.00019858,2]
[343334812,1732578641893,-500.0,0.00019858,2]
[343334813,1732578641903,-500.0,0.00019858,2]
[343334814,1732578641912,-500.0,0.00019858,2]
[343334815,1732578641921,-500.0,0.00019858,2]
[343334816,1732578641930,-500.0,0.00019858,2]
[343334817,1732578641939,-500.0,0.00019858,2]
[343334818,1732578641948,-500.0,0.00019858,2]
[343334819,1732578641957,-500.0,0.00019858,2]
[343334820,1732578641971,-500.0,0.00019858,2]
[343334821,1732578641980,-500.0,0.00019858,2]
[343334822,1732578641990,-700.0,0.00019858,2]
[343334823,1732578641999,-1158.81,0.00019858,2]
[343334824,1732578642009,-500.0,0.00019858,2]
[343334825,1732578642019,-500.0,0.00019858,2]
[343334826,1732578642028,-500.0,0.00019858,2]
[343334827,1732578642038,-500.0,0.00019858,2]
[343334828,1732578642048,-610.08,0.00019858,2]
[343334829,1732578642057,-500.0,0.00019858,2]
[343334830,1732578642070,-500.0,0.00019858,2]
[343334831,1732578642080,-500.0,0.00019858,2]
[343334832,1732578642089,-583.4,0.00019858,2]
[343334833,1732578642098,-500.0,0.00019858,2]
[343334834,1732578642107,-500.0,0.00019858,2]
[343334835,1732578642116,-500.0,0.00019858,2]
[343334836,1732578642126,-500.0,0.00019858,2]
[343334837,1732578642135,-500.0,0.00019858,2]
[343334838,1732578642145,-1469.91,0.00019858,2]
[343334839,1732578642154,-500.0,0.00019858,2]
[343334840,1732578642163,-500.0,0.00019858,2]
[343334841,1732578642172,-500.0,0.00019858,2]
[343334842,1732578642181,-500.0,0.00019858,2]
[343334843,1732578642192,-1725.39,0.00019858,2]
[343334844,1732578642203,-500.0,0.00019858,2]
[343334845,1732578642218,-504.37919649,0.00019858,2]
[343334846,1732578642227,-573.28,0.00019858,2]
[343334847,1732578642236,-629.42,0.00019858,2]
[343334848,1732578642247,-509.25180906,0.00019858,2]
[343334849,1732578642256,-500.0,0.00019858,2]
[343334850,1732578642265,-500.0,0.00019858,2]
[343334851,1732578642275,-500.0,0.00019858,2]
[343334852,1732578642284,-500.0,0.00019858,2]
[343334853,1732578642294,-500.0,0.00019858,2]
[343334854,1732578642303,-1102.96,0.00019858,2]
[343334855,1732578642313,-500.0,0.00019858,2]
[343334856,1732578642322,-1159.46,0.00019858,2]
[343334857,1732578642332,-500.0,0.00019858,2]
[343334858,1732578642340,-1696.48,0.00019858,2]
[343334859,1732578642350,-500.0,0.00019858,2]
[343334860,1732578642360,-516.31,0.00019858,2]
[343334861,1732578642370,-508.28,0.00019858,2]
[343334862,1732578642379,-500.0,0.00019858,2]
[343334863,1732578642388,-500.0,0.00019858,2]
[343334864,1732578642397,-500.0,0.00019858,2]
[343334865,1732578642406,-500.0,0.00019858,2]
[343334866,1732578642416,-500.0,0.00019858,2]
[343334867,1732578642426,-501.37,0.00019858,2]
[343334868,1732578642435,-199.58,0.00019858,2]
[343334869,1732578642444,-500.0,0.00019858,2]
[343334870,1732578642452,-500.0,0.00019858,2]
[343334871,1732578642465,-500.0,0.00019858,2]
[343334872,1732578642474,-514.8,0.00019858,2]
[343334873,1732578642487,-500.0,0.00019858,2]
[343334874,1732578642496,-500.0,0.00019858,2]
[343334875,1732578642506,-1503.94,0.00019858,2]
[343334876,1732578642515,-500.0,0.00019858,2]
[343334877,1732578642525,-500.0,0.00019858,2]
[343334878,1732578642535,-500.0,0.00019858,2]
[343334879,1732578642545,-500.0,0.00019858,2]
[343334880,1732578642555,-559.42,0.00019858,2]
[343334881,1732578642566,-858.09,0.00019858,2]
[343334882,1732578642576,-500.0,0.00019858,2]
[343334883,1732578642586,-500.0,0.00019858,2]
[343334884,1732578642596,-500.0,0.00019858,2]
[343334885,1732578642606,-500.0,0.00019858,2]
[343334886,1732578642616,-2118.04,0.00019858,2]
[343334887,1732578642626,-500.0,0.00019858,2]
[343334888,1732578642635,-1935.18,0.00019858,2]
[343334889,1732578642644,-500.0,0.00019858,2]
[343334890,1732578642653,-500.0,0.00019858,2]
[343334891,1732578642663,-500.0,0.00019858,2]
[343334892,1732578642674,-500.0,0.00019858,2]
[343334893,1732578642684,-500.0,0.00019858,2]
[343334894,1732578642693,-500.0,0.00019858,2]
[343334895,1732578642702,-500.0,0.00019858,2]
[343334896,1732578642716,-500.0,0.00019858,2]
[343334897,1732578642727,-500.0,0.00019858,2]
[343334898,1732578642736,-500.0,0.00019858,2]
[343334899,1732578642745,-500.0,0.00019858,2]
[343334900,1732578642754,-500.0,0.00019858,2]
[343334901,1732578642763,-500.0,0.00019858,2]
[343334902,1732578642772,-500.0,0.00019858,2]
[343334903,1732578642780,-500.0,0.00019858,2]
[343334904,1732578642789,-500.0,0.00019858,2]
[343334905,1732578642797,-500.0,0.00019858,2]
[343334906,1732578642806,-500.0,0.00019858,2]
[343334907,1732578642815,-500.0,0.00019858,2]
[343334908,1732578642824,-500.0,0.00019858,2]
[343334909,1732578642833,-191.11855959,0.00019858,2]
[343334910,1732578642842,-500.0,0.00019858,2]
[343334911,1732578642851,-719.25,0.00019858,2]
[343334912,1732578642860,-500.0,0.00019858,2]
[343334913,1732578642869,-500.0,0.00019858,2]
[343334914,1732578642878,-500.0,0.00019858,2]
[343334915,1732578642887,-500.0,0.00019858,2]
[343334916,1732578642896,-500.0,0.00019858,2]
[343334917,1732578642905,-500.0,0.00019858,2]
[343334918,1732578642915,-500.0,0.00019858,2]
[343334919,1732578642923,-500.0,0.00019858,2]
[343334920,1732578642933,-500.0,0.00019858,2]
[343334921,1732578642942,-500.0,0.00019858,2]
[343334922,1732578642951,-500.0,0.00019858,2]
[343334923,1732578642961,-500.0,0.00019858,2]
[343334924,1732578642977,-500.0,0.00019858,2]
[343334925,1732578642986,-500.0,0.00019858,2]
[343334926,1732578642995,-500.0,0.00019858,2]
[343334927,1732578643004,-500.0,0.00019858,2]
[343334928,1732578643013,-500.0,0.00019858,2]
[343334929,1732578643022,-500.0,0.00019858,2]
[343334930,1732578643031,-500.0,0.00019858,2]
[343334931,1732578643040,-606.00717243,0.00019858,2]
[343334932,1732578643049,-500.0,0.00019858,2]
[343334933,1732578643058,-500.0,0.00019858,2]
[343334934,1732578643067,-540.54769084,0.00019858,2]
[343334935,1732578643077,-247.84567541,0.00019858,2]
[343334936,1732578643086,-391.35,0.00019858,2]
[343334937,1732578643095,-500.0,0.00019858,2]
[343334938,1732578643104,-500.0,0.00019858,2]
[343334939,1732578643113,-500.0,0.00019858,2]
[343334940,1732578643122,-500.0,0.00019858,2]
[343334941,1732578643131,-500.0,0.00019858,2]
[343334942,1732578643140,-500.0,0.00019858,2]
[343334943,1732578643148,-565.42,0.00019858,2]
[343334944,1732578643157,-450.0,0.00019858,2]
[343334945,1732578643167,-500.0,0.00019858,2]
[343334946,1732578643176,-500.0,0.00019858,2]
[343334947,1732578643185,-500.0,0.00019858,2]
[343334948,1732578643194,-500.0,0.00019858,2]
[343334949,1732578643206,-500.0,0.00019858,2]
[343334950,1732578643220,-500.0,0.00019858,2]
[343334951,1732578643229,-500.0,0.00019858,2]
[343334952,1732578643238,-500.0,0.00019858,2]
[343334954,1732578643246,-613.44,0.00019858,2]
[343334956,1732578643257,-639.46,0.00019858,2]
[343334957,1732578643266,-693.12,0.00019858,2]
[343334958,1732578643275,-504.79361495,0.00019858,2]
[343334959,1732578643286,-808.28,0.00019858,2]
[343334960,1732578643295,-703.91,0.00019858,2]
[343334961,1732578643304,-500.0,0.00019858,2]
[343334962,1732578643313,-500.0,0.00019858,2]
[343334963,1732578643323,-500.0,0.00019858,2]
[343334964,1732578643332,-500.0,0.00019858,2]
[343334965,1732578643341,-500.0,0.00019858,2]
[343334966,1732578643351,-500.0,0.00019858,2]
[343334967,1732578643360,-500.0,0.00019858,2]
[343334968,1732578643370,-500.0,0.00019858,2]
[343334969,1732578643379,-591.24,0.00019858,2]
[343334970,1732578643388,-500.0,0.00019858,2]
[343334971,1732578643397,-500.0,0.00019871,2]
[343334972,1732578643406,-500.0,0.00019871,2]
[343334973,1732578643415,-500.0,0.00019871,2]
[343334974,1732578643424,-1075.9,0.00019871,2]
[343334975,1732578643434,-1154.19,0.00019871,2]
[343334976,1732578643443,-500.0,0.00019871,2]
[343334977,1732578643452,-719.7,0.00019871,2]
[343334978,1732578643460,-500.0,0.00019872,2]
[343334979,1732578643472,-500.0,0.00019872,2]
[343334980,1732578643482,-500.0,0.00019872,2]
[343334981,1732578643491,-500.0,0.00019872,2]
[343334982,1732578643501,-2635.61,0.00019872,2]
[343334983,1732578643510,-2362.76,0.00019872,2]
[343334984,1732578643519,-483.01319497,0.00019872,2]
[343334985,1732578643530,-500.0,0.00019872,2]
[343334986,1732578643539,-2794.18,0.00019872,2]
[343334987,1732578643548,-500.0,0.00019872,2]
[343334988,1732578643557,-500.0,0.00019872,2]
[343334989,1732578643567,-500.0,0.00019872,2]
[343334990,1732578643576,-500.0,0.00019872,2]
[343334991,1732578643585,-500.0,0.00019872,2]
[343334992,1732578643594,-500.0,0.00019872,2]
[343334993,1732578643604,-1089.12,0.00019872,2]
[343334994,1732578643613,-500.0,0.00019872,2]
[343334995,1732578643622,-500.0,0.00019872,2]
[343334996,1732578643631,-500.0,0.00019872,2]
[343334997,1732578643641,-500.0,0.00019872,2]
[343334998,1732578643650,-500.0,0.00019872,2]
[343334999,1732578643660,-1655.62,0.00019872,2]
[343335000,1732578643669,-1129.51,0.00019872,2]
[343335001,1732578643679,-500.0,0.00019872,2]
[343335002,1732578643689,-2238.28,0.00019872,2]
[343335004,1732578643697,-500.0,0.00019872,2]
[343335006,1732578643707,-1000.0,0.00019872,2]
[343335007,1732578643718,-500.0,0.00019872,2]
[343335008,1732578643728,-500.0,0.00019872,2]
[343335009,1732578643737,-614.58,0.00019872,2]
[343335010,1732578643746,-756.07,0.00019872,2]
[343335011,1732578643756,-500.0,0.00019872,2]
[343335012,1732578643765,-500.0,0.00019872,2]
[343335013,1732578643774,-500.0,0.00019872,2]
[343335014,1732578643784,-384.57649901,0.00019872,2]
[343335015,1732578643793,-230.18273551,0.00019872,2]
[343335016,1732578643803,-500.0,0.00019872,2]
[343335017,1732578643812,-500.0,0.00019872,2]
[343335018,1732578643821,-500.0,0.00019872,2]
[343335019,1732578643830,-500.0,0.00019872,2]
[343335020,1732578643838,-512.05895306,0.00019872,2]
[343335021,1732578643847,-500.0,0.00019872,2]
[343335022,1732578643856,-508.35026367,0.00019872,2]
[343335023,1732578643865,-500.0,0.00019872,2]
[343335024,1732578643875,-500.0,0.00019872,2]
[343335025,1732578643884,-1537.24,0.00019872,2]
[343335026,1732578643893,-1093.57,0.00019872,2]
[343335027,1732578643903,-500.0,0.00019872,2]
[343335028,1732578643912,-500.0,0.00019872,2]
[343335029,1732578643921,-500.0,0.00019872,2]
[343335030,1732578643930,-1142.1,0.00019872,2]
[343335031,1732578643939,-500.0,0.00019872,2]
[343335032,1732578643948,-500.95437883,0.00019872,2]
[343335033,1732578643958,-1287.72,0.00019872,2]
[343335034,1732578644089,-500.0,0.00019872,2]
[343335035,1732578644108,-500.0,0.00019872,2]
[343335036,1732578644118,-500.0,0.00019872,2]
[343335037,1732578644127,-1188.44,0.00019872,2]
[343335038,1732578644136,-500.0,0.00019872,2]
[343335039,1732578644146,-500.0,0.00019872,2]
[343335040,1732578644155,-500.0,0.00019872,2]
[343335041,1732578644164,-500.0,0.00019872,2]
[343335042,1732578644173,-500.0,0.00019872,2]
[343335043,1732578644182,-500.0,0.00019872,2]
[343335044,1732578644191,-500.0,0.00019872,2]
[343335045,1732578644200,-2081.65,0.00019872,2]
[343335046,1732578644215,-500.0,0.00019872,2]
[343335047,1732578644224,-500.0,0.00019872,2]
[343335048,1732578644233,-1152.57,0.00019872,2]
[343335049,1732578644244,-500.0,0.00019872,2]
[343335050,1732578644254,-500.0,0.00019872,2]
[343335051,1732578644264,-500.0,0.00019872,2]
[343335052,1732578644274,-511.31057691,0.00019872,2]
[343335053,1732578644284,-500.0,0.00019872,2]
[343335054,1732578644294,-500.0,0.00019872,2]
[343335055,1732578644304,-500.0,0.00019872,2]
[343335056,1732578644313,-500.0,0.00019872,2]
[343335057,1732578644322,-500.0,0.00019872,2]
[343335058,1732578644331,-498.02719472,0.00019872,2]
[343335059,1732578644341,-500.0,0.00019872,2]
[343335060,1732578644350,-406.96947325,0.00019872,2]
[343335061,1732578644359,-500.0,0.00019872,2]
[343335062,1732578644368,-500.0,0.00019872,2]
[343335063,1732578644377,-500.0,0.00019872,2]
[343335064,1732578644386,-500.0,0.00019872,2]
[343335065,1732578644396,-500.0,0.00019873,2]
[343335066,1732578644404,-500.0,0.00019873,2]
[343335067,1732578644414,-18817.60526444,0.00019873,2]
[343335068,1732578644423,-4286.88,0.00019877,2]
[343335069,1732578644432,-2751.45,0.00019877,2]
[343335070,1732578644443,-1307.71,0.00019877,2]
[343335071,1732578644455,-500.0,0.00019877,2]
[343335072,1732578644465,-520.19,0.00019877,2]
[343335073,1732578644474,-10060.18,0.00019877,2]
[343335074,1732578644484,-1882.94,0.00019877,2]